fUSD/lending_fUSD_20260401
["ID","MTS","AMOUNT","RATE_DAILY","PERIOD"]
[419249806,1775050242596,-250.0,0.00014926,2]
[419249807,1775050242606,-250.0,0.00014926,2]
[419249808,1775050242616,-250.0,0.00014926,2]
[419249809,1775050242626,-279.9045709,0.00014926,2]
[419249810,1775050242636,-250.0,0.00014926,2]
[419249811,1775050242645,-250.0,0.00014926,2]
[419249812,1775050242655,-250.0,0.00014926,2]
[419249814,1775050242665,-250.0,0.00014926,2]
[419249816,1775050242674,-250.0,0.00014926,2]
[419249818,1775050242686,-262.90206542,0.00014926,2]
[419249820,1775050242695,-743.50770149,0.00014926,2]
[419249822,1775050242705,-500.0,0.00014926,2]
[419249823,1775050242715,-500.0,0.00014926,2]
[419249825,1775050242724,-500.0,0.00014926,2]
[419249827,1775050242734,-500.0,0.00014926,2]
[419249828,1775050242744,-500.0,0.00014926,2]
[419249829,1775050242753,-1600.0,0.00014939,2]
[419249830,1775050242763,-11981.23922053,0.00014959,2]
[419249831,1775050242772,-4900.01606703,0.00014977,2]
[419249832,1775050242782,-500.0,0.00014981,2]
[419249833,1775050242792,-151.0,0.00014981,2]
[419249834,1775050242801,-272.62944185,0.00014981,2]
[419249835,1775050242811,-500.0,0.00014999,2]
[419249836,1775050242820,-500.0,0.00014999,3]
[419249837,1775050242830,-500.0,0.00014999,4]
[419249838,1775050242839,-250.0,0.00015,2]
[419249839,1775050242848,-300.0,0.00015,2]
[419249841,1775050242857,-500.0,0.00015,2]
[419249842,1775050242867,-160.0,0.00015,2]
[419249843,1775050242876,-823.0,0.00015018,2]
[419249844,1775050242885,-500.0,0.00015036,2]
[419249845,1775050242895,-151.0,0.00015036,2]
[419249846,1775050242904,-282.71673119,0.00015036,2]
[419249847,1775050242913,-500.0,0.00015091,2]
[419249848,1775050242924,-151.0,0.00015091,2]
[419249849,1775050242934,-293.17725025,0.00015091,2]
[419249850,1775050242943,-358.49657185,0.00015114,2]
[419249851,1775050242952,-500.0,0.00015146,2]
[419249852,1775050242962,-151.0,0.00015146,2]
[419249853,1775050242971,-304.02480851,0.00015146,2]
[419249854,1775050242981,-338.91999275,0.00015162,2]
[419249855,1775050242991,-11981.23922053,0.00015194,2]
[419249856,1775050243000,-500.0,0.00015201,2]
[419249857,1775050243009,-151.0,0.00015201,2]
[419249858,1775050243018,-315.27372642,0.00015201,2]
[419249859,1775050243028,-10000.0,0.00015205,2]
[419249860,1775050243037,-500.0,0.00015256,2]
[419249861,1775050243047,-151.0,0.00015256,2]
[419249862,1775050243057,-326.9388543,0.00015256,2]
[419249863,1775050243066,-500.0,0.0001526,2]
[419249864,1775050243076,-500.0,0.00015278,2]
[419249865,1775050243086,-500.0,0.00015278,2]
[419249866,1775050243095,-275.71340123,0.00015278,2]
[419249867,1775050243105,-212.776179,0.00015281,2]
[419249868,1775050243114,-4900.01606703,0.00015285,2]
[419249869,1775050243123,-500.0,0.00015288,2]
[419249870,1775050243133,-264.52314394,0.00015288,2]
[419249871,1775050243142,-500.0,0.00015294,2]
[419249872,1775050243152,-500.0,0.00015294,2]
[419249873,1775050243161,-310.2674373,0.00015296,2]
[419249874,1775050243171,-720.98665164,0.00015296,2]
[419249875,1775050243182,-500.0,0.00015311,2]
[419249876,1775050243191,-151.0,0.00015311,2]
[419249877,1775050243201,-339.03559191,0.00015311,2]
[419249878,1775050243211,-339.89177379,0.0001532,2]
[419249879,1775050243221,-168.0,0.00015332,2]
[419249880,1775050243231,-500.0,0.00015342,2]
[419249881,1775050243240,-500.0,0.00015342,2]
[419249882,1775050243250,-500.0,0.00015342,2]
[419249883,1775050243260,-500.0,0.00015342,2]
[419249884,1775050243271,-150.0,0.00015342,2]
[419249885,1775050243281,-150.0,0.00015342,2]
[419249886,1775050243290,-150.0,0.00015342,2]
[419249887,1775050243300,-150.0,0.00015342,2]
[419249888,1775050243310,-230.83967565,0.00015342,2]
[419249889,1775050243320,-150.0,0.00015342,2]
[419249890,1775050243329,-150.0,0.00015342,2]
[419249891,1775050243340,-150.0,0.00015342,2]
[419249892,1775050243349,-150.0,0.00015342,2]
[419249893,1775050243359,-150.0,0.00015342,2]
[419249894,1775050243368,-250.0,0.00015342,2]
[419249896,1775050243378,-500.0,0.00015342,2]
[419249898,1775050243389,-500.0,0.00015342,2]
[419249899,1775050243398,-500.0,0.00015342,2]
[419249900,1775050243407,-500.0,0.00015342,2]
[419249901,1775050243417,-500.0,0.00015342,2]
[419249902,1775050243427,-500.0,0.00015342,2]
[419249903,1775050243436,-500.0,0.00015342,2]
[419249904,1775050243447,-500.0,0.00015342,2]
[419249905,1775050243457,-608.87103939,0.00015342,2]
[419249906,1775050243467,-500.0,0.00015342,2]
[419249907,1775050243477,-500.0,0.00015342,2]
[419249908,1775050243486,-150.0,0.00015342,2]
[419249909,1775050243496,-500.0,0.00015342,2]
[419249911,1775050243506,-500.0,0.00015342,2]
[419249912,1775050243515,-500.0,0.00015342,2]
[419249913,1775050243525,-631.45509652,0.00015342,2]
[419249915,1775050243535,-500.0,0.00015342,2]
[419249916,1775050243545,-500.0,0.00015342,2]
[419249917,1775050243554,-367.08167146,0.00015342,2]
[419249918,1775050243564,-500.0,0.00015342,2]
[419249919,1775050243574,-500.0,0.00015342,2]
[419249920,1775050243584,-500.0,0.00015342,2]
[419249921,1775050243594,-500.0,0.00015342,2]
[419249922,1775050243603,-500.0,0.00015342,2]
[419249923,1775050243614,-500.0,0.00015342,2]
[419249924,1775050243623,-500.0,0.00015342,2]
[419249925,1775050243633,-500.0,0.00015342,2]
[419249926,1775050243643,-350.0,0.00015342,2]
[419249927,1775050243654,-500.0,0.00015342,2]
[419249928,1775050243663,-500.0,0.00015342,2]
[419249929,1775050243673,-150.0,0.00015342,2]
[419249930,1775050243683,-500.0,0.00015342,2]
[419249931,1775050243693,-500.0,0.00015342,2]
[419249932,1775050243703,-500.0,0.00015342,2]
[419249933,1775050243713,-500.0,0.00015342,2]
[419249934,1775050243722,-500.0,0.00015342,2]
[419249935,1775050243732,-500.0,0.00015342,2]
[419249936,1775050243742,-500.0,0.00015342,2]
[419249937,1775050243751,-500.0,0.00015342,2]
[419249938,1775050243761,-500.0,0.00015342,2]
[419249939,1775050243771,-500.0,0.00015342,2]
[419249940,1775050243780,-500.0,0.00015342,2]
[419249941,1775050243789,-287.01664787,0.00015342,2]
[419249942,1775050243801,-500.0,0.00015342,2]
[419249943,1775050243810,-500.0,0.00015342,2]
[419249944,1775050243819,-500.0,0.00015342,2]
[419249945,1775050243829,-500.0,0.00015342,2]
[419249946,1775050243839,-500.0,0.00015342,2]
[419249947,1775050243848,-500.0,0.00015342,2]
[419249948,1775050243858,-500.0,0.00015342,2]
[419249949,1775050243867,-500.0,0.00015342,2]
[419249950,1775050243877,-500.0,0.00015342,2]
[419249951,1775050243886,-500.0,0.00015342,2]
[419249952,1775050243896,-585.603486,0.00015342,2]
[419249953,1775050243905,-500.0,0.00015342,2]
[419249954,1775050243914,-500.0,0.00015342,2]
[419249955,1775050243924,-150.0,0.00015342,2]
[419249956,1775050243935,-500.0,0.00015342,2]
[419249957,1775050243945,-500.0,0.00015342,2]
[419249958,1775050243956,-500.0,0.00015342,2]
[419249959,1775050243966,-500.0,0.00015342,2]
[419249960,1775050243976,-500.0,0.00015342,2]
[419249961,1775050243986,-500.0,0.00015342,2]
[419249962,1775050243995,-500.0,0.00015342,2]
[419249963,1775050244005,-500.0,0.00015342,2]
[419249964,1775050244015,-500.0,0.00015342,2]
[419249965,1775050244025,-500.0,0.00015342,2]
[419249966,1775050244035,-500.0,0.00015342,2]
[419249967,1775050244045,-500.0,0.00015342,2]
[419249968,1775050244055,-500.0,0.00015342,2]
[419249969,1775050244065,-500.0,0.00015342,2]
[419249970,1775050244075,-500.0,0.00015342,2]
[419249971,1775050244085,-500.0,0.00015342,2]
[419249972,1775050244095,-500.0,0.00015342,2]
[419249973,1775050244105,-275.99111668,0.00015342,2]
[419249974,1775050244114,-500.0,0.00015342,2]
[419249975,1775050244123,-500.0,0.00015342,2]
[419249976,1775050244135,-500.0,0.00015342,2]
[419249977,1775050244144,-359.62142584,0.00015342,2]
[419249978,1775050244156,-500.0,0.00015342,2]
[419249979,1775050244166,-150.0,0.00015342,2]
[419249980,1775050244177,-500.0,0.00015342,2]
[419249981,1775050244187,-500.0,0.00015342,2]
[419249982,1775050244197,-500.0,0.00015342,2]
[419249983,1775050244207,-500.0,0.00015342,2]
[419249984,1775050244217,-623.45997877,0.00015342,2]
[419249985,1775050244227,-150.0,0.00015342,2]
[419249986,1775050244238,-150.0,0.00015342,2]
[419249987,1775050244247,-204.22993374,0.00015342,2]
[419249988,1775050244257,-500.0,0.00015342,2]
[419249989,1775050244269,-500.0,0.00015342,2]
[419249990,1775050244278,-532.7968878,0.00015342,2]
[419249991,1775050244288,-150.0,0.00015342,2]
[419249992,1775050244298,-150.0,0.00015342,2]
[419249993,1775050244308,-150.0,0.00015342,2]
[419249994,1775050244319,-150.0,0.00015342,2]
[419249995,1775050244329,-150.0,0.00015342,2]
[419249996,1775050244339,-250.0,0.00015342,2]
[419249997,1775050244349,-160.0,0.00015348,7]
[419249998,1775050244360,-323.93985,0.00015348,7]
[419249999,1775050244370,-487.8797,0.00015348,7]
[419250000,1775050244380,-350.0,0.00015355,2]
[419250001,1775050244390,-312.94,0.00015365,2]
[419250002,1775050244400,-500.0,0.00015366,2]
[419250003,1775050244410,-151.0,0.00015366,2]
[419250004,1775050244420,-160.0,0.00015372,7]
[419250005,1775050244431,-165.349758,0.00015372,7]
[419250006,1775050244440,-170.699517,0.00015372,7]
[419250007,1775050244449,-225.903643,0.00015372,2]
[419250008,1775050244459,-700.0,0.00015385,2]
[419250009,1775050244468,-168.0,0.00015393,2]
[419250010,1775050244477,-2000.0,0.000154,2]
[419250011,1775050244486,-500.0,0.00015421,2]
[419250012,1775050244495,-151.0,0.00015421,2]
[419250013,1775050244505,-11981.23922053,0.0001543,2]
[419250014,1775050244514,-405.0,0.00015452,2]
[419250015,1775050244524,-1428.38747117,0.00015474,2]
[419250016,1775050244534,-200.0,0.00015474,2]
[419250017,1775050244546,-209.40437684,0.00015474,2]
[419250018,1775050244555,-181.08010149,0.00015474,2]
[419250019,1775050244565,-200.0,0.00015474,2]
[419250020,1775050244574,-306.93252742,0.00015474,2]
[419250021,1775050244583,-771.01748645,0.00015474,2]
[419250022,1775050244592,-500.0,0.00015476,2]
[419250023,1775050244602,-151.0,0.00015476,2]
[419250024,1775050244611,-500.0,0.00015477,5]
[419250025,1775050244620,-500.0,0.00015477,6]
[419250026,1775050244630,-246.2536,0.000155,12]
[419250027,1775050244639,-562.94784761,0.00015511,2]
[419250028,1775050244649,-175.246463,0.00015523,2]
[419250029,1775050244658,-280.804699,0.00015523,7]
[419250030,1775050244667,-500.0,0.00015531,2]
[419250031,1775050244676,-151.0,0.00015531,2]
[419250032,1775050244686,-938.0,0.00015541,5]
[419250033,1775050244695,-750.0,0.00015541,5]
[419250034,1775050244704,-500.0,0.00015589,2]
[419250035,1775050244714,-4900.01606703,0.00015592,2]
[419250036,1775050244723,-2000.0,0.000156,2]
[419250037,1775050244732,-2000.0,0.000156,2]
[419250038,1775050244741,-11981.23922053,0.00015665,2]
[419250039,1775050244750,-2000.0,0.00015683,2]
[419250040,1775050244759,-6226.69,0.00015684,2]
[419250041,1775050244769,-204.8435776,0.00015699,2]
[419250042,1775050244778,-227.19733302,0.00015702,2]
[419250043,1775050244787,-150.14902977,0.00015707,2]
[419250044,1775050244797,-3839.97,0.0001573,2]
[419250045,1775050244806,-180.802,0.0001573,2]
[419250046,1775050244816,-237.6216955,0.00015758,2]
[419250047,1775050244825,-306.259251,0.00015764,2]
[419250048,1775050244834,-712.0,0.00015816,2]
[419250049,1775050244843,-1000.0,0.00015836,2]
[419250050,1775050244852,-128106.53871111,0.0001584,2]
[419250051,1775050244861,-2000.0,0.0001584,2]
[419250052,1775050244871,-2000.0,0.0001584,2]
[419250053,1775050244880,-1000.0,0.00015842,2]
[419250054,1775050244890,-2000.0,0.0001585,2]
[419250055,1775050244900,-500.0,0.00015871,2]
[419250056,1775050244909,-200.0,0.00015871,2]
[419250057,1775050244919,-500.0,0.00015872,2]
[419250058,1775050244928,-500.0,0.00015872,2]
[419250059,1775050244938,-200.0,0.00015872,2]
[419250060,1775050244948,-500.0,0.00015873,2]
[419250061,1775050244958,-500.0,0.00015873,2]
[419250062,1775050244969,-500.37557038,0.00015873,2]
[419250063,1775050244979,-150.0,0.00015881,2]
[419250064,1775050244988,-1289.2648,0.000159,2]
[419250065,1775050244999,-1000.0,0.000159,2]
[419250066,1775050245008,-2785.03471442,0.000159,2]
[419250067,1775050245018,-1616.95871434,0.000159,2]
[419250068,1775050245029,-251.15849308,0.000159,2]
[419250069,1775050245040,-173.3840015,0.000159,2]
[419250070,1775050245051,-150.71162126,0.000159,2]
[419250071,1775050245062,-544.18197644,0.000159,2]
[419250072,1775050245072,-11981.23922053,0.000159,2]
[419250073,1775050245081,-4900.01606703,0.000159,2]
[419250074,1775050245092,-712.0,0.00015951,2]
[419250075,1775050245103,-712.0,0.00015953,2]
[419250076,1775050245112,-168.0,0.00015955,2]
[419250077,1775050245122,-500.0,0.00015973,2]
[419250078,1775050245132,-500.0,0.00015973,2]
[419250079,1775050245141,-500.0,0.00015973,2]
[419250080,1775050245151,-500.0,0.00015973,2]
[419250081,1775050245160,-1740.5934114,0.00015973,2]
[419250082,1775050245169,-1162.060847,0.00015973,2]
[419250083,1775050245180,-290.5152118,0.00015973,2]
[419250084,1775050245190,-54148.6067043,0.00015973,2]
[419250085,1775050245199,-207526.0683204,0.00015973,2]
[419250086,1775050245209,-6008.6335998,0.00015973,2]
[419250087,1775050245218,-3707.8182013,0.00015973,2]
[419250088,1775050245228,-13140.7752273,0.00015973,2]
[419250089,1775050245237,-23555.5636625,0.00015973,2]
[419250090,1775050245247,-171.54045635,0.00015984,2]
[419250091,1775050245257,-202.13973464,0.00015984,2]
[419250092,1775050245266,-170.58768545,0.00015984,2]
[419250093,1775050245276,-168.0,0.00015989,2]
[419250094,1775050245286,-154.94225416,0.0001599,2]
[419250095,1775050245297,-154.94225416,0.0001599,2]
[419250096,1775050245307,-151.0,0.00015997,2]
[419250097,1775050245316,-151.0,0.00015997,2]
[419250098,1775050245326,-355.3905852,0.00015997,2]
[419250099,1775050245335,-672.00857251,0.00015999,2]
[419250100,1775050245347,-500.0,0.00015999,2]
[419250101,1775050245357,-500.0,0.00015999,2]
[419250102,1775050245366,-500.0,0.00015999,2]
[419250103,1775050245375,-500.0,0.00015999,2]
[419250104,1775050245385,-500.0,0.00015999,2]
[419250105,1775050245394,-500.0,0.00015999,2]
[419250106,1775050245403,-500.0,0.00015999,2]
[419250107,1775050245414,-500.0,0.00015999,2]
[419250108,1775050245423,-487.27760899,0.00015999,2]
[419250109,1775050245433,-816.89,0.00015999,2]
[419250110,1775050245442,-816.89,0.00015999,2]
[419250111,1775050245452,-816.89,0.00015999,2]
[419250112,1775050245461,-816.89,0.00015999,2]
[419250114,1775050245470,-816.89,0.00015999,2]
[419250115,1775050245480,-816.89,0.00015999,2]
[419250116,1775050245491,-816.89,0.00015999,2]
[419250117,1775050245500,-816.89,0.00015999,2]
[419250118,1775050245509,-816.89,0.00015999,2]
[419250119,1775050245518,-816.89,0.00015999,2]
[419250120,1775050245528,-816.89,0.00015999,2]
[419250121,1775050245537,-816.89,0.00015999,2]
[419250122,1775050245546,-816.89,0.00015999,2]
[419250123,1775050245556,-816.89,0.00015999,2]
[419250124,1775050245564,-816.89,0.00015999,2]
[419250125,1775050245574,-816.89,0.00015999,2]
[419250126,1775050245583,-816.89,0.00015999,2]
[419250127,1775050245593,-816.89,0.00015999,2]
[419250128,1775050245602,-816.89,0.00015999,2]
[419250129,1775050245611,-816.89,0.00015999,2]
[419250130,1775050245620,-816.89,0.00015999,2]
[419250131,1775050245629,-816.89,0.00015999,2]
[419250132,1775050245638,-816.89,0.00015999,2]
[419250133,1775050245648,-816.97931227,0.00015999,2]
[419250134,1775050245657,-500.0,0.00015999,2]
[419250135,1775050245667,-559.62575171,0.00015999,2]
[419250136,1775050245676,-500.0,0.00015999,2]
[419250137,1775050245688,-1263953.7392625,0.00016,2]
[419250199,1775050247416,-490.05627371,0.00016,2]
[419250200,1775050247437,-197147.93244238,0.00016,2]
[419250201,1775050247775,-1120.01191402,0.00015035,2]
[419250202,1775050247787,-1074.8932992,0.00015035,2]
[419250203,1775050247797,-93490.98480164,0.00016,2]
[419250204,1775050247813,-1563.0,0.00016,2]
[419250205,1775050247826,-379991.67340309,0.00016,2]
[419250206,1775050247836,-49066.6988799,0.00016,2]
[419250207,1775050247846,-2603.59466353,0.00016,2]
[419250208,1775050247855,-250.0,0.00016,2]
[419250209,1775050247865,-250.0,0.00016,2]
[419250210,1775050247874,-358.45,0.00016,2]
[419250211,1775050247884,-398852.49976948,0.00016,2]
[419250219,1775051432781,-506.276,0.000105,5]
[419250220,1775051432814,-533.40309,0.000105,5]
[419250221,1775051432887,-4493.32091,0.000105,5]
[419250222,1775051432899,-209.79146822,0.00010528,2]
[419250223,1775051432912,-250.0,0.00010629,2]
[419250224,1775051432926,-1200.0,0.00011129,2]
[419250225,1775051432938,-2808.6615,0.0001113,2]
[419250226,1775051432951,-300.0,0.0001122,2]
[419250227,1775051432962,-248.0,0.0001122,2]
[419250228,1775051432975,-300.0,0.0001122,2]
[419250229,1775051432986,-300.0,0.00011221,2]
[419250230,1775051433000,-300.0,0.00011221,2]
[419250231,1775051433014,-500.0,0.00011223,2]
[419250232,1775051433025,-500.0,0.00011223,2]
[419250233,1775051433037,-500.0,0.00011223,2]
[419250234,1775051433048,-500.0,0.00011223,2]
[419250236,1775051433060,-500.0,0.00011223,2]
[419250237,1775051433071,-500.0,0.00011223,2]
[419250238,1775051433083,-196.23998295,0.00011223,2]
[419250239,1775051433095,-244.82496545,0.00011223,2]
[419250240,1775051433106,-150.0,0.00011549,2]
[419250242,1775051433116,-250.0,0.0001155,2]
[419250244,1775051433126,-600.0,0.0001155,2]
[419250245,1775051433139,-600.0,0.0001155,2]
[419250246,1775051433150,-600.0,0.0001155,2]
[419250247,1775051433162,-600.0,0.0001155,2]
[419250248,1775051433174,-600.0,0.0001155,2]
[419250249,1775051433187,-3554.39,0.00011659,2]
[419250250,1775051433198,-150.0,0.000118,2]
[419250251,1775051433210,-1326.28,0.00012087,2]
[419250252,1775051433222,-1680.0,0.00012242,2]
[419250253,1775051433234,-420.0,0.00012327,2]
[419250254,1775051433246,-255.0,0.00012612,2]
[419250255,1775051433258,-364.23,0.00012634,2]
[419250256,1775051433271,-150.0,0.000128,2]
[419250257,1775051433283,-750.75,0.00012802,2]
[419250258,1775051433294,-6712.45,0.00012823,2]
[419250259,1775051433304,-1500.0,0.00012928,2]
[419250260,1775051433314,-192.2046,0.000131,7]
[419250261,1775051433324,-505.0,0.00013111,2]
[419250262,1775051433334,-152.92,0.0001328,2]
[419250263,1775051433344,-200.0,0.00013397,2]
[419250264,1775051433358,-3240.0,0.00013425,2]
[419250265,1775051433371,-14877.74,0.00013478,2]
[419250266,1775051433380,-580.53,0.00013519,2]
[419250267,1775051433391,-587.0,0.00013543,2]
[419250268,1775051433403,-150.0,0.00013699,2]
[419250269,1775051433415,-200.0,0.00013699,2]
[419250270,1775051433426,-166.66,0.00013699,2]
[419250271,1775051433438,-1000.0,0.00013747,2]
[419250272,1775051433451,-181.0,0.00013766,2]
[419250273,1775051433461,-166.66,0.00013836,2]
[419250274,1775051433472,-500.0,0.00013846,2]
[419250275,1775051433483,-500.0,0.00013846,2]
[419250276,1775051433496,-500.0,0.00013846,2]
[419250277,1775051433506,-500.0,0.00013846,2]
[419250278,1775051433517,-500.0,0.00013846,2]
[419250279,1775051433527,-500.0,0.00013846,2]
[419250280,1775051433539,-500.0,0.00013846,2]
[419250281,1775051433549,-500.0,0.00013846,3]
[419250282,1775051433559,-500.0,0.00013846,4]
[419250283,1775051433579,-500.0,0.00013846,5]
[419250284,1775051433589,-500.0,0.00013846,6]
[419250285,1775051433600,-867.94,0.00013846,2]
[419250286,1775051433611,-867.94,0.00013846,2]
[419250287,1775051433623,-867.94,0.00013846,2]
[419250288,1775051433636,-867.94,0.00013846,2]
[419250289,1775051433648,-867.94,0.00013846,2]
[419250290,1775051433661,-867.94,0.00013846,2]
[419250291,1775051433673,-500.0,0.00013846,2]
[419250292,1775051433685,-500.0,0.00013846,2]
[419250293,1775051433698,-559.62575171,0.00013846,2]
[419250294,1775051433708,-500.0,0.00013846,2]
[419250295,1775051433720,-500.0,0.00013846,2]
[419250296,1775051433731,-415.67,0.00013871,2]
[419250297,1775051433743,-500.0,0.0001389,2]
[419250298,1775051433754,-150.0,0.00013973,2]
[419250299,1775051433766,-166.66,0.00013973,2]
[419250300,1775051433778,-152.92,0.00014011,2]
[419250301,1775051433789,-250.35650714,0.00014035,2]
[419250302,1775051433802,-166.66,0.0001411,2]
[419250303,1775051433813,-421.38,0.00014243,2]
[419250304,1775051433825,-166.66,0.00014247,2]
[419250305,1775051433838,-500.0,0.00014356,2]
[419250306,1775051433850,-166.66,0.00014384,2]
[419250307,1775051433862,-246.2841,0.000144,12]
[419250308,1775051433873,-327.21,0.00014428,2]
[419250309,1775051433884,-384.70089177,0.00014578,2]
[419250310,1775051433896,-2500.0,0.00014579,2]
[419250311,1775051433907,-5000.0,0.00014579,2]
[419250312,1775051433917,-160.0,0.00014586,2]
[419250313,1775051433928,-160.0,0.00014586,2]
[419250314,1775051433939,-5501.52048643,0.00014641,2]
[419250315,1775051433950,-154.94225417,0.00014669,2]
[419250316,1775051433960,-314.86294601,0.00014673,2]
[419250317,1775051436304,-185.13705399,0.00014673,2]
[419250318,1775051436315,-500.0,0.00014673,2]
[419250319,1775051436326,-500.0,0.00014673,2]
[419250320,1775051436336,-500.0,0.00014673,2]
[419250321,1775051436346,-500.0,0.00014677,2]
[419250322,1775051436356,-256.30486431,0.00014678,2]
[419250323,1775051436365,-500.0,0.00014678,2]
[419250324,1775051436375,-648.54188373,0.00014678,2]
[419250325,1775051436385,-500.0,0.00014678,2]
[419250326,1775051436396,-400.9575032,0.00014678,2]
[419250327,1775051436407,-500.0,0.00014678,2]
[419250328,1775051436417,-500.0,0.00014678,2]
[419250329,1775051436428,-500.0,0.00014678,2]
[419250330,1775051436438,-500.0,0.00014678,2]
[419250331,1775051436447,-542.34729939,0.00014678,2]
[419250332,1775051436457,-344.98335295,0.00014679,2]
[419250333,1775051436469,-638.08820819,0.00014679,2]
[419250334,1775051436479,-721.31253995,0.00014679,2]
[419250335,1775051436488,-200.0,0.00014679,5]
[419250336,1775051436498,-200.0,0.00014679,5]
[419250337,1775051436507,-200.0,0.00014679,5]
[419250338,1775051436517,-193.04074056,0.00014679,5]
[419250339,1775051436570,-192.10838099,0.00014677,2]
[419250340,1775051436579,-220.51743791,0.00014677,2]
[419250341,1775051436591,-279.48256209,0.00014677,2]
[419250342,1775051436600,-500.0,0.00014677,2]
[419250343,1775051436611,-500.0,0.00014677,2]
[419250344,1775051436620,-500.0,0.00014677,2]
[419250345,1775051436630,-6.95925944,0.00014679,5]
[419250346,1775051436639,-200.0,0.00014679,5]
[419250347,1775051436649,-200.0,0.00014679,5]
[419250348,1775051436659,-83.55817851,0.00014679,5]
[419250349,1775051436701,-373.56096333,0.00014677,2]
[419250350,1775051436711,-500.0,0.00014677,2]
[419250351,1775051436721,-276.43903667,0.00014677,2]
[419250352,1775051436733,-223.56096333,0.00014677,2]
[419250353,1775051436742,-335.65899487,0.00014677,2]
[419250354,1775051436752,-116.44182149,0.00014679,5]
[419250355,1775051436762,-200.0,0.00014679,5]
[419250356,1775051436772,-200.0,0.00014679,5]
[419250357,1775051436781,-200.0,0.00014679,5]
[419250358,1775051436791,-200.0,0.00014679,5]
[419250359,1775051436800,-200.0,0.00014679,5]
[419250360,1775051436810,-200.0,0.00014679,5]
[419250361,1775051436820,-200.0,0.00014679,5]
[419250362,1775051436830,-200.0,0.00014679,5]
[419250363,1775051436840,-200.0,0.00014679,5]
[419250364,1775051436850,-200.0,0.00014679,5]
[419250365,1775051436860,-200.0,0.00014679,5]
[419250366,1775051436870,-200.0,0.00014679,5]
[419250367,1775051436879,-200.0,0.00014679,5]
[419250368,1775051436888,-200.0,0.00014679,5]
[419250369,1775051436898,-200.0,0.00014679,5]
[419250370,1775051436907,-200.0,0.00014679,5]
[419250371,1775051436917,-200.0,0.00014679,5]
[419250372,1775051436927,-200.0,0.00014679,5]
[419250373,1775051436936,-200.0,0.00014679,5]
[419250374,1775051436946,-200.0,0.00014679,5]
[419250375,1775051436956,-200.0,0.00014679,5]
[419250376,1775051436966,-200.0,0.00014679,5]
[419250377,1775051436975,-200.0,0.00014679,5]
[419250378,1775051436985,-116.76444638,0.00014679,5]
[419250379,1775051436998,-83.23555362,0.00014679,5]
[419250380,1775051437008,-200.0,0.00014679,5]
[419250381,1775051437019,-200.0,0.00014679,5]
[419250382,1775051437029,-200.0,0.00014679,5]
[419250383,1775051437039,-200.0,0.00014679,5]
[419250384,1775051437048,-170.481014,0.00014679,5]
[419250385,1775051437058,-8028.60211664,0.00014679,2]
[419250386,1775051437070,-1000.0,0.00014679,2]
[419250394,1775051438327,-500.0,0.00014641,2]
[419250395,1775051438338,-943.18,0.00014641,2]
[419250396,1775051438353,-835.80819606,0.00014641,2]